bitfinex/quotes_SOLUSD_20220118
["timestamp","ask_amount","ask_price","bid_price","bid_amount"]
[1642465362591,19.4637,141.14,141.04,2.834]
[1642465363576,16.6297,141.14,141.05,0.25]
[1642465363781,2.834,141.18,141.07,10.6292]
[1642465364090,3.83114025,141.19,141.08,10.23]
[1642465364293,3.83114025,141.19,141.09,59.06834414]
[1642465364492,3.83114025,141.19,141.09,60.65667231]
[1642465365478,3.83114025,141.19,141.11,10.6262]
[1642465365681,3.83114025,141.19,141.12,74.263]
[1642465365891,6.06069968,141.22,141.12,84.46132817]
[1642465366079,6.06069968,141.24,141.13,60.93764388]
[1642465366286,6.06069968,141.24,141.14,3.083]
[1642465366485,6.06069968,141.24,141.15,10.23]
[1642465366680,6.06069968,141.24,141.18,10.6198]
[1642465366980,7.82620924,141.28,141.19,3.082]
[1642465367390,7.82620924,141.28,141.19,0.25]
[1642465367391,13.82620924,141.28,141.19,0.25]
[1642465367886,6.0,141.28,141.21,10.6198]
[1642465368182,5.78021128,141.29,141.22,42.65729844]
[1642465368391,11.78021128,141.29,141.23,3.081]
[1642465368778,3.87719922,141.27,141.23,3.081]
[1642465369190,3.87719922,141.27,141.24,10.6178]
[1642465369379,2.831,141.33,141.25,0.25]
[1642465369592,356.76128588,141.36,141.25,0.25]
[1642465369785,362.76128588,141.36,141.25,0.25]
[1642465369983,8.831,141.36,141.25,0.25]
[1642465370191,8.831,141.36,141.25,43.64263896]
[1642465370603,10.6149,141.35,141.28,10.6149]
[1642465370784,6.0,141.36,141.29,0.25]
[1642465371380,2.83,141.39,141.29,0.25]
[1642465371803,13.4419,141.39,141.31,48.86909922]
[1642465371982,13.4419,141.39,141.31,55.03709922]
[1642465371983,10.6119,141.39,141.31,55.03709922]
[1642465372194,10.6119,141.39,141.32,0.25]
[1642465372380,10.6119,141.39,141.31,55.03709922]
[1642465372381,31.00979982,141.38,141.31,48.86909922]
[1642465372603,33.83879982,141.38,141.29,0.25]
[1642465372781,31.00979982,141.38,141.29,0.25]
[1642465372987,31.00979982,141.38,141.28,10.23]
[1642465373192,13.444,141.37,141.22,2.83]
[1642465373384,15.45019958,141.37,141.24,10.23]
[1642465373585,15.45019958,141.37,141.25,41.81790902]
[1642465373983,13.694,141.37,141.25,41.81790902]
[1642465374402,13.694,141.37,141.28,10.6147]
[1642465374587,13.694,141.37,141.29,39.85978363]
[1642465376993,10.6159,141.34,141.29,39.85978363]
[1642465377391,10.6159,141.34,141.26,0.25]
[1642465378290,10.6159,141.34,141.26,49.12113593]
[1642465378893,16.6159,141.34,141.26,49.12113593]
[1642465379501,16.6159,141.34,141.26,59.73773593]
[1642465382598,16.6159,141.34,141.27,2.83]
[1642465382901,10.6185,141.32,141.27,2.83]
[1642465383098,10.6185,141.32,141.23,2.83]
[1642465383312,3.081,141.31,141.22,10.23]
[1642465383498,0.25,141.31,141.22,10.23]
[1642465383697,2.831,141.3,141.22,10.23]
[1642465384098,2.831,141.3,141.23,41.23345088]
[1642465384298,41.16771384,141.3,141.23,41.23345088]
[1642465384499,10.6202,141.29,141.23,41.23345088]
[1642465384802,10.6202,141.29,141.2,10.23]
[1642465385308,0.25,141.28,141.18,2.831]
[1642465385501,10.625,141.25,141.18,2.831]
[1642465385699,35.73195303,141.24,141.18,2.831]
[1642465385907,35.98195303,141.24,141.18,2.831]
[1642465386100,2.832,141.23,141.18,2.831]
[1642465386328,0.25,141.22,141.18,2.831]
[1642465386513,13.4602,141.21,141.18,2.831]
[1642465386700,6.06439994,141.2,141.18,2.831]
[1642465386900,38.33871384,141.19,141.1,40.91472818]
[1642465387299,0.25,141.18,141.1,40.91472818]
[1642465387902,10.6304,141.16,141.1,40.91472818]
[1642465389900,2.834,141.21,141.11,0.25]
[1642465390101,26.001,141.22,141.11,10.8775]
[1642465390307,26.001,141.22,141.12,4.42920583]
[1642465390308,23.168,141.22,141.12,4.42920583]
[1642465390514,29.168,141.22,141.12,4.42920583]
[1642465390706,29.168,141.22,141.13,1.84620583]
[1642465390919,6.0,141.22,141.14,49.96576714]
[1642465391118,30.29981099,141.21,141.14,49.96576714]
[1642465391320,36.29981099,141.21,141.15,0.25]
[1642465391510,10.6265,141.2,141.15,0.25]
[1642465391903,10.6265,141.2,141.14,47.13276714]
[1642465394608,44.79482254,141.2,141.12,2.833]
[1642465394806,0.25,141.19,141.12,2.833]
[1642465395007,10.6303,141.17,141.12,2.333]
[1642465395706,10.6303,141.17,141.12,48.16083565]
[1642465397309,16.6303,141.17,141.12,48.16083565]
[1642465397508,16.6303,141.17,141.12,45.82783565]
[1642465398710,16.6303,141.17,141.12,45.32783565]
[1642465398912,6.0,141.17,141.12,45.32783565]
[1642465399115,2.833,141.19,141.13,0.25]
[1642465399311,27.2249,141.22,141.13,3.083]
[1642465399514,27.2249,141.22,141.13,2.833]
[1642465399913,63.83891147,141.22,141.13,2.833]
[1642465400325,63.83891147,141.22,141.14,0.25]
[1642465400513,10.6266,141.2,141.14,0.25]
[1642465402015,10.6282,141.18,141.14,0.25]
[1642465402616,27.2249,141.22,141.14,0.25]
[1642465402826,0.25,141.21,141.13,0.25]
[1642465403017,10.6275,141.19,141.13,0.25]
[1642465404221,10.6309,141.16,141.1,2.833]
[1642465404428,10.6309,141.16,141.06,1.60663256]
[1642465404429,2.834,141.15,141.07,10.23]
[1642465404620,3.084,141.15,141.07,10.23]
[1642465404822,0.25,141.15,141.07,10.23]
[1642465405020,2.834,141.14,141.07,10.23]
[1642465405222,2.834,141.14,141.08,49.10011276]
[1642465405439,0.25,141.13,141.08,49.10011276]
[1642465405619,10.8822,141.13,141.08,49.10011276]
[1642465406327,16.8822,141.13,141.08,49.10011276]
[1642465407038,6.0,141.13,141.08,49.10011276]
[1642465407425,10.6313,141.14,141.09,0.25]
[1642465409250,16.6313,141.14,141.09,0.25]
[1642465409548,6.0,141.14,141.09,0.25]
[1642465409948,10.6306,141.15,141.09,0.25]
[1642465410349,37.32626241,141.15,141.06,2.834]
[1642465410591,3.084,141.14,141.06,2.834]
[1642465410752,10.6358,141.12,141.06,2.834]
[1642465410949,2.835,141.11,141.06,2.834]
[1642465411153,0.25,141.11,141.06,2.834]
[1642465411349,37.55045704,141.12,141.06,2.834]
[1642465411753,10.636,141.1,141.03,45.03101425]
[1642465411969,10.636,141.1,141.0,10.23]
[1642465412150,0.25,141.09,141.0,10.23]
[1642465412952,2.835,141.11,141.0,11.83663256]
[1642465413172,2.835,141.13,141.01,2.835]
[1642465413375,0.25,141.12,141.01,13.065]
[1642465413570,0.25,141.12,141.01,14.67163256]
[1642465413954,0.25,141.12,141.02,42.1481303]
[1642465414159,0.25,141.12,141.03,2.835]
[1642465414358,0.25,141.12,141.04,0.25]
[1642465414557,10.6336,141.12,141.04,0.25]
[1642465415562,10.6351,141.1,141.04,0.25]
[1642465416958,10.634,141.12,141.04,0.25]
[1642465417857,10.634,141.12,141.03,2.835]
[1642465417858,35.83251549,141.12,141.03,2.835]
[1642465418257,10.6326,141.13,141.03,84.8985]
[1642465418573,35.4383,141.18,141.04,10.23]
[1642465418856,2.835,141.19,141.05,4.44063256]
[1642465419056,2.835,141.19,141.06,10.23]
[1642465419256,47.11233671,141.18,141.08,43.496112]
[1642465419467,10.6303,141.16,141.08,43.496112]
[1642465419663,10.6303,141.16,141.09,0.25]
[1642465420073,2.835,141.19,141.09,0.25]
[1642465420965,41.78711087,141.18,141.09,0.25]
[1642465421156,2.834,141.17,141.09,0.25]
[1642465421574,13.4637,141.17,141.09,0.25]
[1642465422260,2.834,141.18,141.09,0.25]
[1642465422472,6.0,141.19,141.1,2.834]
[1642465422858,0.25,141.18,141.1,2.834]
[1642465423074,45.91374975,141.18,141.11,45.56682564]
[1642465423265,51.91374975,141.18,141.11,45.56682564]
[1642465423576,51.91374975,141.18,141.17,1.0935246]
[1642465423764,57.97814969,141.18,141.17,1.0935246]
[1642465423962,12.31439994,141.18,141.17,1.0935246]
[1642465426062,12.31439994,141.18,141.17,2.46e-05]
[1642465426283,22.94349994,141.18,141.17,2.46e-05]
[1642465426464,94.37349994,141.18,141.17,2.46e-05]
[1642465427866,37.0,141.17,141.06,10.23]
[1642465428067,10.634,141.14,141.03,52.1883]
[1642465428265,0.25,141.13,141.03,2.834]
[1642465428469,3.085,141.13,141.03,2.834]
[1642465428671,0.25,141.13,141.03,2.834]
[1642465428865,0.25,141.13,141.04,40.90861703]
[1642465429275,0.25,141.13,141.03,2.834]
[1642465429476,10.6335,141.12,141.03,2.834]
[1642465429668,2.835,141.11,141.02,10.23]
[1642465429870,3.085,141.11,141.0,8.90011042]
[1642465430279,3.085,141.11,141.01,44.42782174]
[1642465430488,10.637,141.09,141.02,2.835]
[1642465430693,2.835,141.13,141.02,3.085]
[1642465430873,2.835,141.14,141.02,76.12163256]
[1642465431172,57.6189,141.15,141.02,4.69163256]
[1642465431581,57.6189,141.15,141.02,15.32623256]
[1642465432479,54.7839,141.15,141.02,15.32623256]
[1642465432688,65.4153,141.15,141.02,86.75623256]
[1642465433487,65.4153,141.15,141.04,45.50241085]
[1642465433678,65.4153,141.15,141.07,46.84762867]
[1642465433877,65.4153,141.15,141.08,0.25]
[1642465434298,16.6314,141.15,141.08,0.25]
[1642465435017,6.0,141.15,141.08,0.25]
[1642465435402,10.6305,141.16,141.08,0.25]
[1642465435902,0.25,141.15,141.08,0.25]
[1642465436102,10.8813,141.15,141.08,0.25]
[1642465436501,45.65264004,141.15,141.08,0.25]
[1642465436913,10.8813,141.15,141.08,0.25]
[1642465437303,16.8813,141.15,141.08,0.25]
[1642465438717,16.6313,141.15,141.08,0.25]
[1642465440411,10.882,141.14,141.06,13.4656]
[1642465440611,10.882,141.14,141.06,2.834]
[1642465441414,10.882,141.14,141.07,42.98188454]
[1642465441610,33.45826479,141.13,141.07,42.98188454]
[1642465441823,10.6338,141.12,141.07,42.98188454]
[1642465442010,10.6338,141.12,141.04,2.834]
[1642465442622,10.6338,141.12,141.05,0.25]
[1642465443212,10.6338,141.12,141.05,44.81415751]
[1642465443621,0.25,141.11,141.04,2.834]
[1642465443818,10.6351,141.1,141.04,2.834]
[1642465444015,13.4701,141.1,141.02,10.6347]
[1642465444317,0.25,141.09,141.02,10.6347]
[1642465444728,38.52940208,141.09,141.02,45.58763258]
[1642465444921,49.16520208,141.09,141.01,10.23]
[1642465445113,49.16520208,141.09,140.99,117.76511042]
[1642465445320,49.16520208,141.09,140.99,8.90111042]
[1642465445927,49.16520208,141.09,141.0,37.0140412]
[1642465446119,2.835,141.08,141.0,37.0140412]
[1642465446314,10.8877,141.07,141.0,37.0140412]
[1642465447216,33.45826479,141.06,141.0,37.0140412]
[1642465447515,44.09646479,141.06,140.98,20.8679]
[1642465447824,44.09646479,141.06,140.99,0.25]
[1642465448015,16.6382,141.06,140.99,0.25]
[1642465448416,16.6382,141.06,140.98,20.8679]
[1642465448815,6.0,141.06,140.98,20.8679]
[1642465449017,49.6342,141.1,141.01,10.635]
[1642465449219,6.0,141.06,141.02,2.835]
[1642465449522,49.6342,141.1,141.0,2.836]
[1642465449715,49.6342,141.1,141.0,3.086]
[1642465449916,55.6342,141.1,141.0,3.086]
[1642465450115,6.0,141.1,141.02,10.6346]
[1642465450331,40.64791205,141.12,141.03,44.80686356]
[1642465450517,6.0,141.1,141.03,44.80686356]
[1642465450716,40.64791205,141.12,141.03,44.80686356]
[1642465450919,6.0,141.1,141.03,44.80686356]
[1642465451131,0.25,141.11,141.03,44.80686356]
[1642465451520,10.8844,141.11,141.03,44.80686356]
[1642465453146,16.8844,141.11,141.03,44.80686356]
[1642465453749,16.8844,141.11,141.03,0.25]
[1642465454446,16.8844,141.11,141.02,10.6348]
[1642465456154,31.08975482,141.09,141.02,10.6348]
[1642465457148,31.08975482,141.09,141.01,55.70384224]
[1642465457357,0.25,141.08,141.02,0.25]
[1642465457862,41.72545482,141.09,141.02,0.25]
[1642465458352,31.08975482,141.09,141.02,0.25]
[1642465458662,10.6351,141.1,141.02,0.25]
[1642465458863,10.6351,141.1,141.02,10.8848]
[1642465459050,121.4076,141.12,141.02,10.8848]
[1642465459257,0.25,141.11,141.02,13.7198]
[1642465459551,0.25,141.11,141.02,10.8848]
[1642465459752,41.43992072,141.11,141.04,2.02292879]
[1642465459950,41.43992072,141.11,141.04,44.52892883]
[1642465460151,0.25,141.11,141.05,0.25]
[1642465461551,0.25,141.11,141.05,12.90552879]
[1642465465255,94.90531778,141.12,141.05,12.90552879]
[1642465466565,53.1426,141.12,141.05,12.90552879]
[1642465466957,53.1426,141.12,141.05,15.74052879]
[1642465467174,6.0,141.12,141.05,15.74052879]
[1642465467357,1.96487721,141.14,141.05,15.74052879]
[1642465467766,41.60146011,141.14,141.05,15.74052879]
[1642465468361,41.60146011,141.14,141.06,2.02292879]
[1642465468567,41.60146011,141.14,141.07,45.32001459]
[1642465468760,0.25,141.13,141.07,45.57001459]
[1642465469362,6.0,141.14,141.07,45.57001459]
[1642465469565,1.96487721,141.15,141.08,2.834]
[1642465469886,1.96487721,141.15,141.09,0.25]
[1642465470061,7.96487721,141.15,141.11,43.43814534]
[1642465470265,6.0,141.15,141.12,0.25]
[1642465471067,1.96487721,141.16,141.12,0.25]
[1642465471460,6.0,141.16,141.12,0.25]
[1642465471662,1.96487721,141.18,141.12,10.8768]
[1642465472061,7.96487721,141.18,141.12,10.8768]
[1642465472474,1.96487721,141.18,141.12,10.8768]
[1642465472760,1.96487721,141.19,141.12,13.7098]
[1642465473188,1.96487721,141.19,141.12,23.9398]
[1642465473575,1.96487721,141.19,141.12,25.96272879]
[1642465473770,36.74486923,141.23,141.12,25.96272879]
[1642465473771,1.96487721,141.21,141.12,25.96272879]
[1642465474768,1.96487721,141.21,141.14,43.9162729]
[1642465475066,1.96487721,141.21,141.15,10.6244]
[1642465475266,1.96487721,141.21,141.15,10.8744]
[1642465476573,6.0,141.21,141.15,10.8744]
[1642465476971,6.0,141.21,141.15,10.6244]
[1642465477174,0.25,141.2,141.13,2.02292879]
[1642465477673,2.833,141.19,141.13,2.02292879]
[1642465477873,0.25,141.18,141.13,2.02292879]
[1642465478071,10.6307,141.16,141.13,2.02292879]
[1642465478271,6.31439994,141.15,141.13,2.02292879]
[1642465478473,9.14839994,141.15,141.1,2.02292879]
[1642465479205,47.37646923,141.14,141.1,2.02292879]
[1642465479603,47.37646923,141.14,141.07,4.04627199]
[1642465479604,0.25,141.13,141.06,2.02292879]
[1642465479822,2.834,141.12,141.06,2.02292879]
[1642465480303,0.25,141.11,141.06,2.02292879]
[1642465480704,0.25,141.11,141.05,2.02292879]
[1642465481103,0.25,141.11,141.06,0.25]
[1642465481302,0.25,141.12,141.06,0.25]
[1642465481503,10.6344,141.11,141.06,0.25]
[1642465481703,45.62719764,141.11,141.06,0.25]
[1642465482404,45.62719764,141.11,141.05,0.25]
[1642465482809,10.6344,141.11,141.05,0.25]
[1642465483305,10.8833,141.12,141.05,0.25]
[1642465483704,59.11891498,141.12,141.05,0.25]
[1642465484806,10.8833,141.12,141.06,48.0532811]
[1642465485217,16.8833,141.12,141.06,48.0532811]
[1642465485607,6.0,141.12,141.06,48.0532811]
[1642465485809,1.96487721,141.13,141.07,0.25]
[1642465486009,6.0,141.12,141.07,0.25]
[1642465486210,24.92397721,141.14,141.07,0.25]
[1642465486408,30.92397721,141.14,141.07,0.25]
[1642465486809,41.55577721,141.14,141.07,0.25]
[1642465487012,39.5909,141.14,141.07,0.25]
[1642465487213,16.6318,141.14,141.07,0.25]
[1642465487426,1.96487721,141.15,141.07,0.25]
[1642465487612,1.96487721,141.15,141.07,1.86146979]
[1642465488128,1.96487721,141.15,141.07,12.49256979]
[1642465488310,1.96487721,141.15,141.09,37.92557359]
[1642465488711,1.96487721,141.15,141.1,0.25]
[1642465488910,58.83689326,141.17,141.1,0.25]
[1642465488911,60.80177047,141.17,141.1,0.25]
[1642465491012,60.80177047,141.17,141.09,37.92557359]
[1642465491217,10.6311,141.15,141.09,37.92557359]
[1642465491410,10.6311,141.15,141.08,4.85692879]
[1642465492315,10.6311,141.15,141.09,39.15117534]
[1642465494014,12.84507721,141.16,141.09,39.15117534]
[1642465494213,12.59507721,141.16,141.09,39.15117534]
[1642465494623,0.25,141.15,141.09,39.15117534]
[1642465495317,10.8812,141.15,141.09,39.15117534]
[1642465496422,10.8812,141.15,141.09,38.90117534]
[1642465496618,13.7152,141.15,141.09,38.90117534]
[1642465497531,10.8812,141.15,141.09,38.90117534]
[1642465499219,10.8812,141.15,141.07,2.02292879]
[1642465499419,13.7152,141.15,141.07,2.02292879]
[1642465500020,15.68007721,141.15,141.06,2.02292879]
[1642465500219,12.84607721,141.15,141.07,40.54067305]
[1642465500621,12.84607721,141.15,141.08,0.25]
[1642465501021,10.8812,141.15,141.08,0.25]
[1642465501220,16.8812,141.15,141.07,40.54067305]
[1642465501821,16.8812,141.15,141.08,0.25]
[1642465503731,6.0,141.15,141.08,0.25]
[1642465503931,1.96487721,141.16,141.08,0.25]
[1642465504143,1.96487721,141.16,141.09,2.834]
[1642465504334,1.96487721,141.16,141.1,44.51336155]
[1642465504548,1.96487721,141.16,141.11,2.834]
[1642465504936,1.96487721,141.16,141.12,0.25]
[1642465505334,1.96487721,141.16,141.11,2.834]
[1642465506149,0.25,141.15,141.11,2.834]
[1642465506642,10.6306,141.16,141.11,2.834]
[1642465506834,25.7827,141.18,141.12,0.25]
[1642465507049,22.9487,141.18,141.12,0.25]
[1642465507244,2.21487721,141.17,141.12,0.25]
[1642465507637,18.84427721,141.17,141.12,0.25]
[1642465507933,18.84427721,141.17,141.11,0.25]
[1642465508351,16.8794,141.17,141.1,44.26336155]
[1642465508535,25.87324959,141.16,141.09,2.02292879]
[1642465508749,13.4649,141.15,141.09,2.02292879]
[1642465508935,10.8809,141.15,141.09,2.02292879]
[1642465509136,10.6309,141.15,141.09,2.02292879]
[1642465509837,13.4642,141.16,141.07,2.02292879]
[1642465510047,12.59507721,141.16,141.08,2.834]
[1642465510246,12.59507721,141.16,141.08,3.084]
[1642465510437,52.06383889,141.16,141.09,40.75285204]
[1642465510637,0.25,141.15,141.09,40.75285204]
[1642465510842,10.6307,141.15,141.09,40.75285204]
[1642465511038,10.8807,141.15,141.09,40.75285204]
[1642465511240,16.8807,141.15,141.09,40.75285204]
[1642465511636,6.0,141.15,141.1,0.25]
[1642465511838,1.96487721,141.16,141.1,0.25]
[1642465512058,6.0,141.15,141.1,0.25]
[1642465512439,1.96487721,141.16,141.1,0.25]
[1642465512638,6.0,141.16,141.1,0.25]
[1642465513075,12.59417721,141.17,141.1,0.25]
[1642465513261,18.59417721,141.17,141.1,0.25]
[1642465513767,18.59417721,141.17,141.09,42.77578083]
[1642465514263,18.59417721,141.17,141.09,40.75285204]
[1642465515266,12.84517721,141.16,141.08,12.65282879]
[1642465515464,12.84517721,141.16,141.09,0.25]
[1642465516262,12.84517721,141.16,141.09,39.14391336]
[1642465517366,28.81971895,141.15,141.09,39.14391336]
[1642465517573,28.81971895,141.15,141.09,0.25]
[1642465517766,39.45061895,141.15,141.09,0.25]
[1642465518467,0.25,141.14,141.07,12.65412879]
[1642465518665,0.25,141.14,141.07,2.02292879]
[1642465518886,10.6325,141.13,141.07,2.02292879]
[1642465519065,13.4665,141.13,141.07,2.02292879]
[1642465519264,71.68,141.12,141.07,2.02292879]
[1642465519879,35.30486114,141.11,141.07,2.02292879]
[1642465520081,38.13986114,141.11,141.07,2.02292879]
[1642465520281,0.25,141.1,141.07,2.02292879]
[1642465520484,0.25,141.1,141.04,2.02292879]
[1642465521171,0.25,141.1,141.03,61.62597781]
[1642465521371,0.25,141.1,141.03,12.65712879]
[1642465521571,19.3054,141.1,141.03,2.02292879]
[1642465522383,19.3054,141.1,141.03,37.90117395]
[1642465522772,25.3054,141.1,141.03,37.90117395]
[1642465522983,14.421,141.1,141.04,0.25]
[1642465523184,6.0,141.1,141.04,1.86146979]
[1642465523492,6.0,141.11,141.05,4.44646979]
[1642465523672,6.0,141.11,141.05,15.07886979]
[1642465523873,7.96487721,141.12,141.06,45.22415892]
[1642465524072,6.0,141.12,141.07,2.835]
[1642465524277,32.83267721,141.14,141.08,0.25]
[1642465525273,30.8678,141.14,141.08,0.25]
[1642465525873,30.8678,141.14,141.07,4.85792879]
[1642465526071,30.8678,141.14,141.07,2.02292879]
[1642465526673,41.4995,141.14,141.07,2.02292879]
[1642465527082,41.4995,141.14,141.06,62.0744575]
[1642465527275,0.25,141.13,141.07,0.25]
[1642465528285,8.834,141.14,141.07,10.8813]
[1642465528582,6.0,141.14,141.08,2.834]
[1642465528788,1.96487721,141.15,141.09,0.25]
[1642465529275,1.96487721,141.15,141.09,42.32143017]
[1642465529675,1.96487721,141.15,141.09,52.95013017]
[1642465529894,1.96487721,141.17,141.09,52.95013017]
[1642465531077,0.25,141.16,141.09,52.95013017]
[1642465533178,13.7139,141.16,141.09,42.32143017]
[1642465533386,30.78446652,141.15,141.08,6.46811872]
[1642465533592,30.78446652,141.15,141.08,4.85692879]
[1642465533882,0.25,141.14,141.08,4.85692879]
[1642465534080,3.084,141.14,141.08,4.85692879]
[1642465534682,3.084,141.14,141.06,2.02292879]
[1642465534897,13.7157,141.14,141.06,2.02292879]
[1642465535483,71.43,141.13,141.06,2.02292879]
[1642465535685,2.834,141.12,141.06,2.02292879]
[1642465535906,40.95320035,141.11,141.05,2.02292879]
[1642465536090,74.265,141.1,141.05,2.02292879]
[1642465536297,74.515,141.1,141.05,2.02292879]
[1642465537085,74.515,141.1,141.02,2.02292879]
[1642465537486,10.6361,141.09,141.02,2.02292879]
[1642465537690,30.78446652,141.08,141.02,2.02292879]
[1642465537907,31.03446652,141.08,141.02,2.02292879]
[1642465538892,13.472,141.07,141.02,2.02292879]
[1642465539291,0.25,141.06,141.01,2.02292879]
[1642465540106,10.6399,141.05,141.01,2.02292879]
[1642465540995,2.835,141.07,141.0,44.08907975]
[1642465541195,6.0,141.05,141.01,0.25]
[1642465541388,1.96487721,141.08,141.01,0.25]
[1642465541389,7.96487721,141.08,141.01,0.25]
[1642465541589,0.25,141.07,141.01,0.25]
[1642465541992,0.25,141.07,141.01,2.27292879]
[1642465542606,0.25,141.07,141.01,2.02292879]
[1642465542794,30.04574916,141.07,141.01,2.02292879]
[1642465543192,2.836,141.06,141.01,2.02292879]
[1642465543406,10.8883,141.05,141.01,2.02292879]
[1642465543804,10.8883,141.05,141.0,2.02292879]
[1642465544293,0.25,141.04,141.0,2.02292879]
[1642465544894,0.25,141.04,140.99,2.02292879]
[1642465545194,0.25,141.04,140.99,2.27292879]
[1642465545594,42.19191771,141.04,140.99,2.27292879]
[1642465546005,52.83101771,141.04,140.99,2.27292879]
[1642465546823,58.83101771,141.04,140.99,2.27292879]
[1642465548525,58.83101771,141.04,140.99,2.02292879]
[1642465549222,16.8891,141.04,140.99,2.02292879]
[1642465550037,16.6391,141.04,140.99,2.02292879]
[1642465551839,0.25,141.03,140.99,2.02292879]
[1642465552127,10.89,141.03,140.99,2.02292879]
[1642465553030,10.89,141.03,140.98,2.02292879]
[1642465553329,82.32,141.03,140.98,2.02292879]
[1642465554033,82.32,141.03,140.97,2.02292879]
[1642465554237,10.6427,141.01,140.97,2.02292879]
[1642465554429,0.25,141.03,140.97,49.63633117]
[1642465554929,0.25,141.04,140.97,49.63633117]
[1642465555151,0.25,141.04,140.97,47.61340238]
[1642465555633,10.64,141.03,140.97,47.61340238]
[1642465555832,0.25,141.02,140.97,47.61340238]
[1642465556039,71.68,141.02,140.96,2.02292879]
[1642465556247,71.68,141.02,140.97,2.02292879]
[1642465556637,82.3211,141.02,140.97,2.02292879]
[1642465557055,71.43,141.0,140.97,2.02292879]
[1642465557235,9.15139994,140.99,140.94,4.04627199]
[1642465557446,9.15139994,140.99,140.92,2.837]
[1642465557447,71.43,140.98,140.95,2.02376705]
[1642465557635,82.0746,140.98,140.95,2.02376705]
[1642465557834,0.25,140.97,140.95,2.02376705]
[1642465558445,6.06439994,140.96,140.92,6.88327199]
[1642465558634,6.06439994,140.96,140.9,46.84415967]
[1642465558835,0.25,140.95,140.9,46.84415967]
[1642465559239,6.06439994,140.96,140.9,46.84415967]
[1642465559450,16.70969994,140.96,140.9,46.84415967]
[1642465559638,22.70969994,140.96,140.9,46.84415967]
[1642465559836,22.70969994,140.96,140.9,42.79788768]
[1642465560053,16.6453,140.96,140.9,42.79788768]
[1642465562348,16.6453,140.96,140.91,0.25]
[1642465563754,6.0,140.96,140.9,42.79788768]
[1642465564253,71.43,140.98,140.91,0.25]
[1642465564460,0.25,140.97,140.9,45.63488768]
[1642465564649,108.51698309,140.97,140.9,42.79788768]
[1642465565250,114.51698309,140.97,140.9,42.79788768]
[1642465565670,10.6452,140.96,140.9,42.79788768]
[1642465565871,0.25,140.95,140.9,42.79788768]
[1642465566272,0.25,140.95,140.88,28.83247199]
[1642465566471,0.25,140.95,140.88,4.04627199]
[1642465566673,19.7534,140.95,140.88,4.04627199]
[1642465567679,19.7534,140.95,140.88,4.0489756]
[1642465569686,10.8964,140.95,140.87,148.42826914]
[1642465569875,10.6464,140.95,140.89,1.6154465]
[1642465570074,22.7065,140.98,140.89,4.4534465]
[1642465570296,26.1813,141.0,140.9,0.25]
[1642465570475,2.838,141.0,140.91,2.837]
[1642465570675,3.84197114,141.02,140.92,10.23]
[1642465570878,3.84197114,141.02,140.94,10.641]
[1642465571074,10.6414,141.01,140.94,10.641]
[1642465571275,6.0,141.01,140.95,0.25]
[1642465571676,71.43,141.04,140.95,0.25]
[1642465572099,77.43,141.04,140.95,0.25]
[1642465572277,10.6412,141.02,140.94,0.25]
[1642465572877,10.6412,141.02,140.93,2.837]
[1642465573082,71.43,141.01,140.93,2.837]
[1642465573277,74.267,141.01,140.93,2.837]
[1642465573484,10.6422,141.0,140.93,2.837]
[1642465573683,2.837,141.02,140.93,2.837]
[1642465573890,2.837,141.02,140.92,50.66028615]
[1642465574179,2.837,141.02,140.93,0.25]